Workbook

Sheet Лист1
L2: Расход труб, шт. | M2: =SUBTOTAL(9,E9:E830)/12050 -> 57.00829876 | N2: 12050 | O2: =N2*N3*M2 -> 274780 | P2: в пересчете на кг
I3: Формулы до 999 стороки | L3: Использ. | M3: =((SUBTOTAL(9,M9:M830)+SUBTOTAL(9,O9:O830)+SUBTOTAL(9,Q9:Q830)+SUBTOTAL(9,S9:S830)+SUBTOTAL(9,G9:G830)))/(SUBTOTAL(9,E9:E830)) -> 0.9483703326 | N3: 0.4 | O3: =O2*M3 -> 260593.2
L4: Отход. | M4: =((SUBTOTAL(9,J9:J830))/(SUBTOTAL(9,E9:E830))) -> 0.05162966737 | O4: =O2*M4 -> 14186.8
L5: Невозвр. отх. | M5: =((SUBTOTAL(9,G9:G830))/(SUBTOTAL(9,E9:E830))) -> 0.0007031079409 | O5: =O2*M5 -> 193.2
A7: Входной контроль | F7: Вычисляемые параметры | K7: Раскрой
A8: Завод | B8: Входн.№ ПСК | C8: Зав. № | D8: Серт. № | E8: Длина трубы, мм | F8: Невозв. отх., % (вход. в исп.) | G8: Рез, мм | H8: Исп., % | I8: Остаток, % | J8: Остаток, мм | K8: Номер раскроя | L8: Сегмент #1 | M8: Длина сегмента, мм | N8: Сегмент #2 | O8: Длина сегмента, мм | P8: Сегмент #3 | Q8: Длина сегмента, мм | R8: Сегмент #4 | S8: Длина сегмента, мм | U8: Сегмент | V8: Длина сегмента, мм | W8: Номер раскроя | X8: Завод | Y8: Входн.№ ПСК | Z8: Зав. № | AA8: Серт. №
A9: ЗМЗ | B9: 501 | C9: 435 | D9: 601 | E9: 12150 | F9: =G9/E9 -> 0.001152263374 | G9: =(COUNTA(L9,N9,P9,R9)*7) -> 14 | H9: =(M9+G9+O9+Q9+S9)/E9 -> 0.9888065844 | I9: =J9/E9 -> 0.01119341564 | J9: =(E9-G9)-M9-O9-Q9-S9 -> 136 | K9: 1 | L9: СД2.ВС: С-17.1-1 | M9: 7500 | N9: СД2.ВС: С-1.21-1 | O9: 4500 | U9: СД2.ВС: С-17.1-1 | V9: 7500 | W9: 1 | X9: ЗМЗ | Y9: 501 | Z9: 435 | AA9: 601
A10: ЗМЗ | B10: 502 | C10: 436 | D10: 602 | E10: 12050 | F10: 0.0005809128631 | G10: 7 | H10: 0.9964315353 | I10: 0.00356846473 | J10: 43 | K10: 2 | L10: СД2.ВС: С-17.1-2 | M10: 12000 | U10: СД2.ВС: С-1.21-1 | V10: 4500 | W10: 1 | X10: ЗМЗ | Y10: 501 | Z10: 435 | AA10: 601
A11: ЗМЗ | B11: 503 | C11: 437 | D11: 603 | E11: 12050 | F11: 0.0005809128631 | G11: 7 | H11: 0.7474688797 | I11: 0.2525311203 | J11: 3043 | K11: 3 | L11: СД2.ВС: С-17.1-3 | M11: 9000 | U11: СД2.ВС: С-17.1-2 | V11: 12000 | W11: 2 | X11: ЗМЗ | Y11: 502 | Z11: 436 | AA11: 602
E12: 12050 | F12: 0.001161825726 | G12: 14 | H12: 0.9970124481 | I12: 0.002987551867 | J12: 36 | K12: 4 | L12: СД2.ВС: С-1.1-1 | M12: 4500 | N12: СД2.ВС: С-1.2-1 | O12: 7500 | U12: СД2.ВС: С-17.1-3 | V12: 9000 | W12: 3 | X12: ЗМЗ | Y12: 503 | Z12: 437 | AA12: 603
E13: 12050 | F13: 0.0005809128631 | G13: 7 | H13: 0.9964315353 | I13: 0.00356846473 | J13: 43 | K13: 5 | L13: СД2.ВС: С-1.1-2 | M13: 12000 | U13: СД2.ВС: С-1.1-1 | V13: 4500 | W13: 4
E14: 12050 | F14: 0.0005809128631 | G14: 7 | H14: 0.9964315353 | I14: 0.00356846473 | J14: 43 | K14: 6 | L14: СД2.ВС: С-1.1-3 | M14: 12000 | U14: СД2.ВС: С-1.2-1 | V14: 7500 | W14: 4
E15: 12050 | F15: 0.0005809128631 | G15: 7 | H15: 0.9964315353 | I15: 0.00356846473 | J15: 43 | K15: 7 | L15: СД2.ВС: С-1.2-2 | M15: 12000 | U15: СД2.ВС: С-1.1-2 | V15: 12000 | W15: 5
E16: 12050 | F16: 0.0005809128631 | G16: 7 | H16: 0.7474688797 | I16: 0.2525311203 | J16: 3043 | K16: 8 | L16: СД2.ВС: С-1.2-3 | M16: 9000 | U16: СД2.ВС: С-1.1-3 | V16: 12000 | W16: 6
E17: 12050 | F17: 0.001161825726 | G17: 14 | H17: 0.9970124481 | I17: 0.002987551867 | J17: 36 | K17: 9 | L17: СД2.ВС: С-1.3-1 | M17: 4500 | N17: СД2.ВС: С-1.4-1 | O17: 7500 | U17: СД2.ВС: С-1.2-2 | V17: 12000 | W17: 7
E18: 12050 | F18: 0.0005809128631 | G18: 7 | H18: 0.9964315353 | I18: 0.00356846473 | J18: 43 | K18: 10 | L18: СД2.ВС: С-1.3-2 | M18: 12000 | U18: СД2.ВС: С-1.2-3 | V18: 9000 | W18: 8
E19: 12050 | F19: 0.0005809128631 | G19: 7 | H19: 0.9964315353 | I19: 0.00356846473 | J19: 43 | K19: 11 | L19: СД2.ВС: С-1.3-3 | M19: 12000 | U19: СД2.ВС: С-1.3-1 | V19: 4500 | W19: 9
E20: 12050 | F20: 0.0005809128631 | G20: 7 | H20: 0.9964315353 | I20: 0.00356846473 | J20: 43 | K20: 12 | L20: СД2.ВС: С-1.4-2 | M20: 12000 | U20: СД2.ВС: С-1.4-1 | V20: 7500 | W20: 9
E21: 12050 | F21: 0.0005809128631 | G21: 7 | H21: 0.7474688797 | I21: 0.2525311203 | J21: 3043 | K21: 13 | L21: СД2.ВС: С-1.4-3 | M21: 9000 | U21: СД2.ВС: С-1.3-2 | V21: 12000 | W21: 10
E22: 12050 | F22: 0.001161825726 | G22: 14 | H22: 0.9970124481 | I22: 0.002987551867 | J22: 36 | K22: 14 | L22: СД2.ВС: С-1.5-1 | M22: 4500 | N22: СД2.ВС: С-1.6-1 | O22: 7500 | U22: СД2.ВС: С-1.3-3 | V22: 12000 | W22: 11
E23: 12050 | F23: 0.0005809128631 | G23: 7 | H23: 0.9964315353 | I23: 0.00356846473 | J23: 43 | K23: 15 | L23: СД2.ВС: С-1.5-2 | M23: 12000 | U23: СД2.ВС: С-1.4-2 | V23: 12000 | W23: 12
E24: 12050 | F24: 0.0005809128631 | G24: 7 | H24: 0.9964315353 | I24: 0.00356846473 | J24: 43 | K24: 16 | L24: СД2.ВС: С-1.5-3 | M24: 12000 | U24: СД2.ВС: С-1.4-3 | V24: 9000 | W24: 13
E25: 12050 | F25: 0.0005809128631 | G25: 7 | H25: 0.9964315353 | I25: 0.00356846473 | J25: 43 | K25: 17 | L25: СД2.ВС: С-1.6-2 | M25: 12000 | U25: СД2.ВС: С-1.5-1 | V25: 4500 | W25: 14
E26: 12050 | F26: 0.0005809128631 | G26: 7 | H26: 0.7474688797 | I26: 0.2525311203 | J26: 3043 | K26: 18 | L26: СД2.ВС: С-1.6-3 | M26: 9000 | U26: СД2.ВС: С-1.6-1 | V26: 7500 | W26: 14
E27: 12050 | F27: 0.001161825726 | G27: 14 | H27: 0.9970124481 | I27: 0.002987551867 | J27: 36 | K27: 19 | L27: СД2.ВС: С-1.7-1 | M27: 4500 | N27: СД2.ВС: С-1.8-1 | O27: 7500 | U27: СД2.ВС: С-1.5-2 | V27: 12000 | W27: 15
E28: 12050 | F28: 0.0005809128631 | G28: 7 | H28: 0.9964315353 | I28: 0.00356846473 | J28: 43 | K28: 20 | L28: СД2.ВС: С-1.7-2 | M28: 12000 | U28: СД2.ВС: С-1.5-3 | V28: 12000 | W28: 16
E29: 12050 | F29: 0.0005809128631 | G29: 7 | H29: 0.9964315353 | I29: 0.00356846473 | J29: 43 | K29: 21 | L29: СД2.ВС: С-1.7-3 | M29: 12000 | U29: СД2.ВС: С-1.6-2 | V29: 12000 | W29: 17
E30: 12050 | F30: 0.0005809128631 | G30: 7 | H30: 0.9964315353 | I30: 0.00356846473 | J30: 43 | K30: 22 | L30: СД2.ВС: С-1.8-2 | M30: 12000 | U30: СД2.ВС: С-1.6-3 | V30: 9000 | W30: 18
E31: 12050 | F31: 0.0005809128631 | G31: 7 | H31: 0.7474688797 | I31: 0.2525311203 | J31: 3043 | K31: 23 | L31: СД2.ВС: С-1.8-3 | M31: 9000 | U31: СД2.ВС: С-1.7-1 | V31: 4500 | W31: 19
E32: 12050 | F32: 0.001161825726 | G32: 14 | H32: 0.9970124481 | I32: 0.002987551867 | J32: 36 | K32: 24 | L32: СД2.ВС: С-1.9-1 | M32: 4500 | N32: СД2.ВС: С-1.10-1 | O32: 7500 | U32: СД2.ВС: С-1.8-1 | V32: 7500 | W32: 19
E33: 12050 | F33: 0.0005809128631 | G33: 7 | H33: 0.9964315353 | I33: 0.00356846473 | J33: 43 | K33: 25 | L33: СД2.ВС: С-1.9-2 | M33: 12000 | U33: СД2.ВС: С-1.7-2 | V33: 12000 | W33: 20
E34: 12050 | F34: 0.0005809128631 | G34: 7 | H34: 0.9964315353 | I34: 0.00356846473 | J34: 43 | K34: 26 | L34: СД2.ВС: С-1.9-3 | M34: 12000 | U34: СД2.ВС: С-1.7-3 | V34: 12000 | W34: 21
E35: 12050 | F35: 0.0005809128631 | G35: 7 | H35: 0.9964315353 | I35: 0.00356846473 | J35: 43 | K35: 27 | L35: СД2.ВС: С-1.10-2 | M35: 12000 | U35: СД2.ВС: С-1.8-2 | V35: 12000 | W35: 22
E36: 12050 | F36: 0.0005809128631 | G36: 7 | H36: 0.7474688797 | I36: 0.2525311203 | J36: 3043 | K36: 28 | L36: СД2.ВС: С-1.10-3 | M36: 9000 | U36: СД2.ВС: С-1.8-3 | V36: 9000 | W36: 23
E37: 12050 | F37: 0.001161825726 | G37: 14 | H37: 0.9970124481 | I37: 0.002987551867 | J37: 36 | K37: 29 | L37: СД2.ВС: С-1.11-1 | M37: 4500 | N37: СД2.ВС: С-1.12-1 | O37: 7500 | U37: СД2.ВС: С-1.9-1 | V37: 4500 | W37: 24
E38: 12050 | F38: 0.0005809128631 | G38: 7 | H38: 0.9964315353 | I38: 0.00356846473 | J38: 43 | K38: 30 | L38: СД2.ВС: С-1.11-2 | M38: 12000 | U38: СД2.ВС: С-1.10-1 | V38: 7500 | W38: 24
E39: 12050 | F39: 0.0005809128631 | G39: 7 | H39: 0.9964315353 | I39: 0.00356846473 | J39: 43 | K39: 31 | L39: СД2.ВС: С-1.11-3 | M39: 12000 | U39: СД2.ВС: С-1.9-2 | V39: 12000 | W39: 25
E40: 12050 | F40: 0.0005809128631 | G40: 7 | H40: 0.9964315353 | I40: 0.00356846473 | J40: 43 | K40: 32 | L40: СД2.ВС: С-1.12-2 | M40: 12000 | U40: СД2.ВС: С-1.9-3 | V40: 12000 | W40: 26
E41: 12050 | F41: 0.0005809128631 | G41: 7 | H41: 0.7474688797 | I41: 0.2525311203 | J41: 3043 | K41: 33 | L41: СД2.ВС: С-1.12-3 | M41: 9000 | U41: СД2.ВС: С-1.10-2 | V41: 12000 | W41: 27
E42: 12050 | F42: 0.001161825726 | G42: 14 | H42: 0.9970124481 | I42: 0.002987551867 | J42: 36 | K42: 34 | L42: СД2.ВС: С-1.13-1 | M42: 4500 | N42: СД2.ВС: С-1.14-1 | O42: 7500 | U42: СД2.ВС: С-1.10-3 | V42: 9000 | W42: 28
E43: 12050 | F43: 0.0005809128631 | G43: 7 | H43: 0.9964315353 | I43: 0.00356846473 | J43: 43 | K43: 35 | L43: СД2.ВС: С-1.13-2 | M43: 12000 | U43: СД2.ВС: С-1.11-1 | V43: 4500 | W43: 29
E44: 12050 | F44: 0.0005809128631 | G44: 7 | H44: 0.9964315353 | I44: 0.00356846473 | J44: 43 | K44: 36 | L44: СД2.ВС: С-1.13-3 | M44: 12000 | U44: СД2.ВС: С-1.12-1 | V44: 7500 | W44: 29
E45: 12050 | F45: 0.0005809128631 | G45: 7 | H45: 0.9964315353 | I45: 0.00356846473 | J45: 43 | K45: 37 | L45: СД2.ВС: С-1.14-2 | M45: 12000 | U45: СД2.ВС: С-1.11-2 | V45: 12000 | W45: 30
E46: 12050 | F46: 0.0005809128631 | G46: 7 | H46: 0.7474688797 | I46: 0.2525311203 | J46: 3043 | K46: 38 | L46: СД2.ВС: С-1.14-3 | M46: 9000 | U46: СД2.ВС: С-1.11-3 | V46: 12000 | W46: 31
E47: 12050 | F47: 0.001161825726 | G47: 14 | H47: 0.9970124481 | I47: 0.002987551867 | J47: 36 | K47: 39 | L47: СД2.ВС: С-1.15-1 | M47: 4500 | N47: СД2.ВС: С-1.16-1 | O47: 7500 | U47: СД2.ВС: С-1.12-2 | V47: 12000 | W47: 32
E48: 12050 | F48: 0.0005809128631 | G48: 7 | H48: 0.9964315353 | I48: 0.00356846473 | J48: 43 | K48: 40 | L48: СД2.ВС: С-1.15-2 | M48: 12000 | U48: СД2.ВС: С-1.12-3 | V48: 9000 | W48: 33
E49: 12050 | F49: 0.0005809128631 | G49: 7 | H49: 0.9964315353 | I49: 0.00356846473 | J49: 43 | K49: 41 | L49: СД2.ВС: С-1.15-3 | M49: 12000 | U49: СД2.ВС: С-1.13-1 | V49: 4500 | W49: 34
E50: 12050 | F50: 0.0005809128631 | G50: 7 | H50: 0.9964315353 | I50: 0.00356846473 | J50: 43 | K50: 42 | L50: СД2.ВС: С-1.16-2 | M50: 12000 | U50: СД2.ВС: С-1.14-1 | V50: 7500 | W50: 34
E51: 12050 | F51: 0.0005809128631 | G51: 7 | H51: 0.7474688797 | I51: 0.2525311203 | J51: 3043 | K51: 43 | L51: СД2.ВС: С-1.16-3 | M51: 9000 | U51: СД2.ВС: С-1.13-2 | V51: 12000 | W51: 35
E52: 12050 | F52: 0.001161825726 | G52: 14 | H52: 0.9970124481 | I52: 0.002987551867 | J52: 36 | K52: 44 | L52: СД2.ВС: С-1.17-1 | M52: 4500 | N52: СД2.ВС: С-1.18-1 | O52: 7500 | U52: СД2.ВС: С-1.13-3 | V52: 12000 | W52: 36
E53: 12050 | F53: 0.0005809128631 | G53: 7 | H53: 0.9964315353 | I53: 0.00356846473 | J53: 43 | K53: 45 | L53: СД2.ВС: С-1.17-2 | M53: 12000 | U53: СД2.ВС: С-1.14-2 | V53: 12000 | W53: 37
E54: 12050 | F54: 0.0005809128631 | G54: 7 | H54: 0.9964315353 | I54: 0.00356846473 | J54: 43 | K54: 46 | L54: СД2.ВС: С-1.17-3 | M54: 12000 | U54: СД2.ВС: С-1.14-3 | V54: 9000 | W54: 38
E55: 12050 | F55: 0.0005809128631 | G55: 7 | H55: 0.9964315353 | I55: 0.00356846473 | J55: 43 | K55: 47 | L55: СД2.ВС: С-1.18-2 | M55: 12000 | U55: СД2.ВС: С-1.15-1 | V55: 4500 | W55: 39
E56: 12050 | F56: 0.0005809128631 | G56: 7 | H56: 0.7474688797 | I56: 0.2525311203 | J56: 3043 | K56: 48 | L56: СД2.ВС: С-1.18-3 | M56: 9000 | U56: СД2.ВС: С-1.16-1 | V56: 7500 | W56: 39
E57: 12050 | F57: 0.001161825726 | G57: 14 | H57: 0.9970124481 | I57: 0.002987551867 | J57: 36 | K57: 49 | L57: СД2.ВС: С-1.19-1 | M57: 4500 | N57: СД2.ВС: С-1.20-1 | O57: 7500 | U57: СД2.ВС: С-1.15-2 | V57: 12000 | W57: 40
E58: 12050 | F58: 0.0005809128631 | G58: 7 | H58: 0.9964315353 | I58: 0.00356846473 | J58: 43 | K58: 50 | L58: СД2.ВС: С-1.19-2 | M58: 12000 | U58: СД2.ВС: С-1.15-3 | V58: 12000 | W58: 41
E59: 12050 | F59: 0.0005809128631 | G59: 7 | H59: 0.9964315353 | I59: 0.00356846473 | J59: 43 | K59: 51 | L59: СД2.ВС: С-1.19-3 | M59: 12000 | U59: СД2.ВС: С-1.16-2 | V59: 12000 | W59: 42
E60: 12050 | F60: 0.0005809128631 | G60: 7 | H60: 0.9964315353 | I60: 0.00356846473 | J60: 43 | K60: 52 | L60: СД2.ВС: С-1.20-2 | M60: 12000 | U60: СД2.ВС: С-1.16-3 | V60: 9000 | W60: 43
E61: 12050 | F61: 0.0005809128631 | G61: 7 | H61: 0.7474688797 | I61: 0.2525311203 | J61: 3043 | K61: 53 | L61: СД2.ВС: С-1.20-3 | M61: 9000 | U61: СД2.ВС: С-1.17-1 | V61: 4500 | W61: 44
E62: 12050 | F62: 0.0005809128631 | G62: 7 | H62: 0.9964315353 | I62: 0.00356846473 | J62: 43 | K62: 54 | L62: СД2.ВС: С-1.21-2 | M62: 12000 | U62: СД2.ВС: С-1.18-1 | V62: 7500 | W62: 44
E63: 12050 | F63: 0.0005809128631 | G63: 7 | H63: 0.9964315353 | I63: 0.00356846473 | J63: 43 | K63: 55 | L63: СД2.ВС: С-1.21-3 | M63: 12000 | U63: СД2.ВС: С-1.17-2 | V63: 12000 | W63: 45
E64: 12050 | F64: 0.001161825726 | G64: 14 | H64: 0.9970124481 | I64: 0.002987551867 | J64: 36 | K64: 56 | L64: СД2.ВС: С-2.1-1 | M64: 4500 | N64: СД2.ВС: С-2.2-1 | O64: 7500 | U64: СД2.ВС: С-1.17-3 | V64: 12000 | W64: 46
E65: 12050 | F65: 0.0005809128631 | G65: 7 | H65: 0.9964315353 | I65: 0.00356846473 | J65: 43 | K65: 57 | L65: СД2.ВС: С-2.1-2 | M65: 12000 | U65: СД2.ВС: С-1.18-2 | V65: 12000 | W65: 47
U66: СД2.ВС: С-1.18-3 | V66: 9000 | W66: 48
U67: СД2.ВС: С-1.19-1 | V67: 4500 | W67: 49
U68: СД2.ВС: С-1.20-1 | V68: 7500 | W68: 49
U69: СД2.ВС: С-1.19-2 | V69: 12000 | W69: 50
U70: СД2.ВС: С-1.19-3 | V70: 12000 | W70: 51
U71: СД2.ВС: С-1.20-2 | V71: 12000 | W71: 52
U72: СД2.ВС: С-1.20-3 | V72: 9000 | W72: 53
U73: СД2.ВС: С-1.21-2 | V73: 12000 | W73: 54
U74: СД2.ВС: С-1.21-3 | V74: 12000 | W74: 55
U75: СД2.ВС: С-2.1-1 | V75: 4500 | W75: 56
U76: СД2.ВС: С-2.2-1 | V76: 7500 | W76: 56
U77: СД2.ВС: С-2.1-2 | V77: 12000 | W77: 57

Sheet Лист2
A1: Сегмент | B1: Длина сегмента, мм | C1: Номер раскроя | D1: Завод | E1: Входн.№ ПСК | F1: Зав. № | G1: Серт. №
A2: СД2.ВС: С-17.1-1 | B2: 7500 | C2: 1 | D2: ЗМЗ | E2: 501 | F2: 435 | G2: 601
A3: СД2.ВС: С-1.21-1 | B3: 4500 | C3: 1 | D3: ЗМЗ | E3: 501 | F3: 435 | G3: 601
A4: СД2.ВС: С-17.1-2 | B4: 12000 | C4: 2 | D4: ЗМЗ | E4: 502 | F4: 436 | G4: 602
A5: СД2.ВС: С-17.1-3 | B5: 9000 | C5: 3 | D5: ЗМЗ | E5: 503 | F5: 437 | G5: 603
